{"text_format":"1","workbook":"xlsx","n_sheets":20,"sheets":["Bilanz_Daten","Strukturbilanz","Strukturbilanz_L","Bewegungsbilanz","Bewegungsbilanz_L","GuV_Daten","Kapitalfluss","Kapitalfluss_L","Kennz1","Kennz1_L","Kennz2","Kennz2_L","Kennz3","Kennz3_L","Kennz4","Kennz4_L","Kennz5","Kennz5_L","Kennz6","Kennz6_L"],"not_rendered":{"charts":0,"images":0,"macros":1,"external_links":0,"defined_names":20,"comments":0,"pivot_tables":0},"unopened":[],"bounds":{"document_bytes":16777216,"sheet_cells":100000,"rows_first":2000,"rows_last":500,"rows_between":2000,"halvings":0,"cell_chars":16384,"cell_head_chars":4096},"cells_cut":0,"cells_raw":0,"read":"whole","date_system":"1900"}

{"sheet":"Bilanz_Daten","index":0,"n_rows":41,"n_cols":15,"rows_kept":41,"cut":false,"hidden":false,"merged":[[18,13,18,14],[16,4,17,11]]}
[]
[]
[null,null,"Lernmodul M 04"]
[null,null,"Betriebswirtschaftliche Kennzahlen"]
[]
[null,null,"Thema: Fallbeispiel zur Bilanz- und Erfolgsanalyse"]
[]
[null,null,"1. Bilanz-Daten"]
[]
[null,null,"Die MaBau AG hat ihre Bilanz zum Bilanzstichtag",null,null,null,null,{"$f":"CONCATENATE(\"31.12.\" & YEAR(NOW())-1)","v":"31.12.2021"}," zur Jahresabschlussanalyse vorbereitet."]
[null,null,"Der erwirtschafte Jahresüberschuss betrug",null,null,null,null,1026,"TEUR"]
[null,null,"Davon wurden",null,800,"TEUR in Gewinnrücklagen eingestellt. "]
[null,null,"Der verbleibende Bilanzgewinn in Höhe von",null,null,null,null,{"$f":"H11-E12","v":226}," TEUR soll kurzfristig ausgeschüttet werden."]
[null,null,"Es wurden im Abschlussjahr Investitionen in Höhe von",null,null,null,null,null,3075,null,"TEUR vorgenomen,"]
[null,null," Die Daten für die Jahresabschlussanalyse sind der nachfolgenden Tabelle zu entnehmen."]
[]
[null,null,null,null,{"$f":"CONCATENATE(\"Bilanz der MaBau AG zum 31.12.\" & YEAR(NOW())-1)","v":"Bilanz der MaBau AG zum 31.12.2021"},null,null,null,null,null,null,null,"Angaben in  TEUR"]
[]
[null,null,null,"AKTIVA",null,null,null,null,null,null,null,null,null,"PASSIVA"]
[]
[null,null,null,null,null,null,null,{"$f":"CONCATENATE(\"31.12.\" & YEAR(NOW())-1)","v":"31.12.2021"},{"$f":"CONCATENATE(\"31.12.\" & YEAR(NOW())-2)","v":"31.12.2020"},null,null,null,null,{"$f":"CONCATENATE(\"31.12.\" & YEAR(NOW())-1)","v":"31.12.2021"},{"$f":"CONCATENATE(\"31.12.\" & YEAR(NOW())-2)","v":"31.12.2020"}]
[]
[null,null,null,"Immaterielle Vermögensgegenstände",null,null,null,120,80,null,null,"Gezeichnetes Kapital",null,700,700]
[null,null,null,"Grundstücke und Bauten",null,null,null,1910,1860,null,null,"Kapitalrücklage",null,{"$f":"2100+300+280","v":2680},{"$f":"2100+300+280","v":2680}]
[null,null,null,"Technische Anlagen und Maschinen",null,null,null,1820,1710,null,null,"Gewinnrücklagen",null,1410,610]
[null,null,null,"Betriebs- und Geschäftsausstattung",null,null,null,1270,1190,null,null,"Bilanzgewinn",null,{"$f":"H41-SUM(N23:N25)-SUM(N28:N38)","v":226},{"$f":"I41-SUM(O23:O25)-SUM(O28:O38)","v":0}]
[null,null,null,"Beteiligungen",null,null,null,825,800]
[null,null,null,"Wertpapiere des Anlagevermögens",null,null,null,760,710,null,null,"Rückstellungen für Pensionen",null,1650,1880]
[]
[null,null,null,"Roh-, Hilfs- und Betriebsstoffe",null,null,null,1010,1290,null,null,"Steuerrückstellungen",null,240,200]
[null,null,null,"Unfertige Erzeugnisse",null,null,null,680,790,null,null,"Sonstige Rückstellungen",null,2660,2140]
[null,null,null,"Fertige Erzeugnisse und Waren",null,null,null,540,720]
[null,null,null,"Forderungen aLuL",null,null,null,1130,580,null,null,"Verbindlichkeiten gg. Kreditinstituten",null,980,1310]
[null,null,null,"Wertpapiere des Umlaufvermögens",null,null,null,960,1020,null,null,"Verbindlichkeiten aLuL",null,520,920]
[null,null,null,"Sonstige Vermögensgegenstände",null,null,null,110,90,null,null,"Sonstige Verbindlichkeiten",null,{"$f":"920","v":920},1040]
[null,null,null,"Liquide Mittel",null,null,null,820,590]
[]
[null,null,null,"Rechnungsabgrenzungsposten",null,null,null,45,70,null,null,"Rechnungsabgrenzungsposten",null,14,20]
[]
[]
[null,null,null,null,null,null,null,{"$f":"SUM(H23:H38)","v":12000},{"$f":"SUM(I23:I38)","v":11500},null,null,null,null,{"$f":"SUM(N23:N38)","v":12000},{"$f":"SUM(O23:O38)","v":11500}]

{"sheet":"Strukturbilanz","index":1,"n_rows":38,"n_cols":8,"rows_kept":38,"cut":false,"hidden":false,"merged":[[9,2,10,2],[9,7,10,7],[23,2,24,2],[23,7,24,7]]}
[]
[]
[null,null,{"$f":"Bilanz_Daten!C3","v":"Lernmodul M 04"}]
[null,null,{"$f":"Bilanz_Daten!C4","v":"Betriebswirtschaftliche Kennzahlen"}]
[]
[null,null,{"$f":"Bilanz_Daten!C6","v":"Thema: Fallbeispiel zur Bilanz- und Erfolgsanalyse"}]
[]
[null,null,"2. Strukturbilanz"]
[]
[null,null,"AKTIVA","Berichtsjahr","%","Vorjahr","%","Verän-derung"]
[null,null,null,{"$f":"YEAR(NOW())-1","v":2021},null,{"$f":"YEAR(NOW())-2","v":2020}]
[null,null,"Immaterielle Vermögensgegenstände",{"$f":"Bilanz_Daten!H23","v":120},{"$f":"D12*100/$D$22","v":1},{"$f":"Bilanz_Daten!I23","v":80},{"$f":"F12*100/$F$22","v":0.69565217391304346},{"$f":"D12-F12","v":40}]
[null,null,"Sachanlagen",{"$f":"SUM(Bilanz_Daten!H24:H26)","v":5000},{"$f":"D13*100/$D$22","v":41.666666666666664},{"$f":"SUM(Bilanz_Daten!I24:I26)","v":4760},{"$f":"F13*100/$F$22","v":41.391304347826086},240]
[null,null,"Finanzanlagen",{"$f":"Bilanz_Daten!H27+Bilanz_Daten!H28","v":1585},{"$f":"D14*100/D22","v":13.208333333333334},{"$f":"Bilanz_Daten!I27+Bilanz_Daten!I28","v":1510},{"$f":"F14*100/$F$22","v":13.130434782608695},75]
[null,null,"Anlagevermögen",{"$f":"SUM(D12:D14)","v":6705},{"$f":"SUM(E12:E14)","v":55.875},{"$f":"SUM(F12:F14)","v":6350},{"$f":"SUM(G12:G14)","v":55.217391304347828},355]
[null,null,"Vorräte",{"$f":"SUM(Bilanz_Daten!H30:H32)","v":2230},{"$f":"D16*100/$D$22","v":18.583333333333332},{"$f":"SUM(Bilanz_Daten!I30:I32)","v":2800},{"$f":"F16*100/$F$22","v":24.347826086956523},-570]
[null,null,"Forderungen und sonst. Vermögensgegenstände",{"$f":"Bilanz_Daten!H33+Bilanz_Daten!H35","v":1240},{"$f":"D17*100/$D$22","v":10.333333333333334},{"$f":"Bilanz_Daten!I33+Bilanz_Daten!I35","v":670},{"$f":"F17*100/$F$22","v":5.8260869565217392},570]
[null,null,"Wertpapiere",{"$f":"Bilanz_Daten!H34","v":960},{"$f":"D18*100/$D$22","v":8},{"$f":"Bilanz_Daten!I34","v":1020},{"$f":"F18*100/$F$22","v":8.8695652173913047},-60]
[null,null,"Flüssige Mittel",{"$f":"Bilanz_Daten!H36","v":820},{"$f":"D19*100/$D$22","v":6.833333333333333},{"$f":"Bilanz_Daten!I36","v":590},{"$f":"F19*100/$F$22","v":5.1304347826086953},230]
[null,null,"Aktive Rechnungsabgrenzung",{"$f":"Bilanz_Daten!H38","v":45},{"$f":"D20*100/$D$22","v":0.375},{"$f":"Bilanz_Daten!I38","v":70},{"$f":"F20*100/$F$22","v":0.60869565217391308},-25]
[null,null,"Umlaufvermögen",{"$f":"SUM(D16:D20)","v":5295},{"$f":"SUM(E16:E20)","v":44.125},{"$f":"SUM(F16:F20)","v":5150},{"$f":"SUM(G16:G20)","v":44.782608695652172},145]
[null,null,"Gesamtvermögen",{"$f":"D15+D21","v":12000},{"$f":"E15+E21","v":100},{"$f":"F15+F21","v":11500},{"$f":"G15+G21","v":100},{"$f":"D22-F22","v":500}]
[]
[null,null,"PASSIVA","Berichtsjahr","%","Vorjahr","%","Verän-derung"]
[null,null,null,{"$f":"YEAR(NOW())-1","v":2021},null,{"$f":"YEAR(NOW())-2","v":2020}]
[null,null,"Gezeichnetes Kapital",{"$f":"Bilanz_Daten!N23","v":700},{"$f":"D26*100/$D$38","v":5.833333333333333},{"$f":"Bilanz_Daten!O23","v":700},{"$f":"F26*100/$F$38","v":6.0869565217391308},{"$f":"D26-F26","v":0}]
[null,null,"Kapitalrücklagen",{"$f":"Bilanz_Daten!N24","v":2680},22.333333333333332,{"$f":"Bilanz_Daten!O24","v":2680},23.304347826086957]
[null,null,"Gewinnrücklagen",{"$f":"Bilanz_Daten!N25","v":1410},11.75,{"$f":"Bilanz_Daten!O25","v":610},5.3043478260869561,800]
[null,null,"Eigenkapital",{"$f":"SUM(D26:D28)","v":4790},39.916666666666664,{"$f":"SUM(F26:F28)","v":3990},34.695652173913047,800]
[null,null,"Langfristige Rückstellungen",{"$f":"Bilanz_Daten!N28","v":1650},13.75,{"$f":"Bilanz_Daten!O28","v":1880},16.347826086956523,-230]
[null,null,"Langfristige. Verbindlichkeiten",{"$f":"Bilanz_Daten!N33","v":980},8.1666666666666661,{"$f":"Bilanz_Daten!O33","v":1310},11.391304347826088,-330]
[null,null,"Langfristiges Fremdkapital",{"$f":"D30+D31","v":2630},21.916666666666668,{"$f":"F30+F31","v":3190},27.739130434782609,-560]
[null,null,"Kurzfristige Verbindlichkeiten, inklus. Dividendenzahlungen (Bilanzgewinn)",{"$f":"Bilanz_Daten!N34+Bilanz_Daten!N35+Bilanz_Daten!N26","v":1666},13.883333333333333,{"$f":"Bilanz_Daten!O34+Bilanz_Daten!O35","v":1960},17.043478260869566,-294]
[null,null,"Steuerrückstellungen",{"$f":"Bilanz_Daten!N30","v":240},2,{"$f":"Bilanz_Daten!O30","v":200},1.7391304347826086,40]
[null,null,"Sonstige Rückstellungen",{"$f":"Bilanz_Daten!N31","v":2660},22.166666666666668,{"$f":"Bilanz_Daten!O31","v":2140},18.608695652173914,520]
[null,null,"Passive Rechnungsabgrenzung",{"$f":"Bilanz_Daten!N38","v":14},0.11666666666666667,{"$f":"Bilanz_Daten!O38","v":20},0.17391304347826086,-6]
[null,null,"Kurzfristiges Fremdkapital",{"$f":"SUM(D33:D36)","v":4580},38.166666666666664,{"$f":"SUM(F33:F36)","v":4320},37.565217391304351,260]
[null,null,"Gesamtkapital",{"$f":"D29+D32+D37","v":12000},{"$f":"E29+E32+E37","v":100},{"$f":"F29+F32+F37","v":11500},{"$f":"G29+G32+G37","v":100},{"$f":"D38-F38","v":500}]

{"sheet":"Strukturbilanz_L","index":2,"n_rows":38,"n_cols":8,"rows_kept":38,"cut":false,"hidden":true,"merged":[[9,7,10,7],[23,7,24,7],[9,2,10,2],[23,2,24,2]]}
[]
[]
[null,null,{"$f":"Bilanz_Daten!C3","v":"Lernmodul M 04"}]
[null,null,{"$f":"Bilanz_Daten!C4","v":"Betriebswirtschaftliche Kennzahlen"}]
[]
[null,null,{"$f":"Bilanz_Daten!C6","v":"Thema: Fallbeispiel zur Bilanz- und Erfolgsanalyse"}]
[]
[null,null,"2. Strukturbilanz: Musterlösung"]
[]
[null,null,"AKTIVA","Berichtsjahr","%","Vorjahr","%","Verän-derung"]
[null,null,null,{"$f":"YEAR(NOW())-1","v":2021},null,{"$f":"YEAR(NOW())-2","v":2020}]
[null,null,"Immaterielle Vermögensgegenstände",{"$f":"Bilanz_Daten!H23","v":120},{"$f":"D12*100/$D$22","v":1},{"$f":"Bilanz_Daten!I23","v":80},{"$f":"F12*100/$F$22","v":0.69565217391304346},{"$f":"D12-F12","v":40}]
[null,null,"Sachanlagen",{"$f":"SUM(Bilanz_Daten!H24:H26)","v":5000},{"$f":"D13*100/$D$22","v":41.666666666666664},{"$f":"SUM(Bilanz_Daten!I24:I26)","v":4760},{"$f":"F13*100/$F$22","v":41.391304347826086},240]
[null,null,"Finanzanlagen",{"$f":"Bilanz_Daten!H27+Bilanz_Daten!H28","v":1585},{"$f":"D14*100/D22","v":13.208333333333334},{"$f":"Bilanz_Daten!I27+Bilanz_Daten!I28","v":1510},{"$f":"F14*100/$F$22","v":13.130434782608695},75]
[null,null,"Anlagevermögen",{"$f":"SUM(D12:D14)","v":6705},{"$f":"SUM(E12:E14)","v":55.875},{"$f":"SUM(F12:F14)","v":6350},{"$f":"SUM(G12:G14)","v":55.217391304347828},355]
[null,null,"Vorräte",{"$f":"SUM(Bilanz_Daten!H30:H32)","v":2230},{"$f":"D16*100/$D$22","v":18.583333333333332},{"$f":"SUM(Bilanz_Daten!I30:I32)","v":2800},{"$f":"F16*100/$F$22","v":24.347826086956523},-570]
[null,null,"Forderungen und sonst. Vermögensgegenstände",{"$f":"Bilanz_Daten!H33+Bilanz_Daten!H35","v":1240},{"$f":"D17*100/$D$22","v":10.333333333333334},{"$f":"Bilanz_Daten!I33+Bilanz_Daten!I35","v":670},{"$f":"F17*100/$F$22","v":5.8260869565217392},570]
[null,null,"Wertpapiere",{"$f":"Bilanz_Daten!H34","v":960},{"$f":"D18*100/$D$22","v":8},{"$f":"Bilanz_Daten!I34","v":1020},{"$f":"F18*100/$F$22","v":8.8695652173913047},-60]
[null,null,"Flüssige Mittel",{"$f":"Bilanz_Daten!H36","v":820},{"$f":"D19*100/$D$22","v":6.833333333333333},{"$f":"Bilanz_Daten!I36","v":590},{"$f":"F19*100/$F$22","v":5.1304347826086953},230]
[null,null,"Aktive Rechnungsabgrenzung",{"$f":"Bilanz_Daten!H38","v":45},{"$f":"D20*100/$D$22","v":0.375},{"$f":"Bilanz_Daten!I38","v":70},{"$f":"F20*100/$F$22","v":0.60869565217391308},-25]
[null,null,"Umlaufvermögen",{"$f":"SUM(D16:D20)","v":5295},{"$f":"SUM(E16:E20)","v":44.125},{"$f":"SUM(F16:F20)","v":5150},{"$f":"SUM(G16:G20)","v":44.782608695652172},145]
[null,null,"Gesamtvermögen",{"$f":"D15+D21","v":12000},{"$f":"E15+E21","v":100},{"$f":"F15+F21","v":11500},{"$f":"G15+G21","v":100},{"$f":"D22-F22","v":500}]
[]
[null,null,"PASSIVA","Berichtsjahr","%","Vorjahr","%","Verän-derung"]
[null,null,null,{"$f":"YEAR(NOW())-1","v":2021},null,{"$f":"YEAR(NOW())-2","v":2020}]
[null,null,"Gezeichnetes Kapital",{"$f":"Bilanz_Daten!N23","v":700},{"$f":"D26*100/$D$38","v":5.833333333333333},{"$f":"Bilanz_Daten!O23","v":700},{"$f":"F26*100/$F$38","v":6.0869565217391308},{"$f":"D26-F26","v":0}]
[null,null,"Kapitalrücklagen",{"$f":"Bilanz_Daten!N24","v":2680},22.333333333333332,{"$f":"Bilanz_Daten!O24","v":2680},23.304347826086957]
[null,null,"Gewinnrücklagen",{"$f":"Bilanz_Daten!N25","v":1410},11.75,{"$f":"Bilanz_Daten!O25","v":610},5.3043478260869561,800]
[null,null,"Eigenkapital",{"$f":"SUM(D26:D28)","v":4790},39.916666666666664,{"$f":"SUM(F26:F28)","v":3990},34.695652173913047,800]
[null,null,"Langfristige Rückstellungen",{"$f":"Bilanz_Daten!N28","v":1650},13.75,{"$f":"Bilanz_Daten!O28","v":1880},16.347826086956523,-230]
[null,null,"Langfristige. Verbindlichkeiten",{"$f":"Bilanz_Daten!N33","v":980},8.1666666666666661,{"$f":"Bilanz_Daten!O33","v":1310},11.391304347826088,-330]
[null,null,"Langfristiges Fremdkapital",{"$f":"D30+D31","v":2630},21.916666666666668,{"$f":"F30+F31","v":3190},27.739130434782609,-560]
[null,null,"Kurzfristige Verbindlichkeiten, inklus. Dividendenzahlungen (Bilanzgewinn)",{"$f":"Bilanz_Daten!N34+Bilanz_Daten!N35+Bilanz_Daten!N26","v":1666},13.883333333333333,{"$f":"Bilanz_Daten!O34+Bilanz_Daten!O35","v":1960},17.043478260869566,-294]
[null,null,"Steuerrückstellungen",{"$f":"Bilanz_Daten!N30","v":240},2,{"$f":"Bilanz_Daten!O30","v":200},1.7391304347826086,40]
[null,null,"Sonstige Rückstellungen",{"$f":"Bilanz_Daten!N31","v":2660},22.166666666666668,{"$f":"Bilanz_Daten!O31","v":2140},18.608695652173914,520]
[null,null,"Passive Rechnungsabgrenzung",{"$f":"Bilanz_Daten!N38","v":14},0.11666666666666667,{"$f":"Bilanz_Daten!O38","v":20},0.17391304347826086,-6]
[null,null,"Kurzfristiges Fremdkapital",{"$f":"SUM(D33:D36)","v":4580},38.166666666666664,{"$f":"SUM(F33:F36)","v":4320},37.565217391304351,260]
[null,null,"Gesamtkapital",{"$f":"D29+D32+D37","v":12000},{"$f":"E29+E32+E37","v":100},{"$f":"F29+F32+F37","v":11500},{"$f":"G29+G32+G37","v":100},{"$f":"D38-F38","v":500}]

{"sheet":"Bewegungsbilanz","index":3,"n_rows":35,"n_cols":10,"rows_kept":35,"cut":false,"hidden":false,"merged":[[10,3,10,10]]}
[]
[]
[null,{"$f":"Bilanz_Daten!B6","v":0},{"$f":"Bilanz_Daten!C3","v":"Lernmodul M 04"}]
[null,null,{"$f":"Bilanz_Daten!C4","v":"Betriebswirtschaftliche Kennzahlen"}]
[]
[null,null,{"$f":"Bilanz_Daten!C6","v":"Thema: Fallbeispiel zur Bilanz- und Erfolgsanalyse"}]
[]
[null,null,"3. Bewegungsbilanz"]
[]
[]
[null,null,null,{"$f":"CONCATENATE(\"Bewegungsbilanz der MaBau AG  - Geschäftsjahr \" & YEAR(NOW())-1)","v":"Bewegungsbilanz der MaBau AG  - Geschäftsjahr 2021"}]
[]
[null,null,null,"Mittelverwendung"]
[]
[null,null,null,"Zugang AKTIVA",null,null,null,null,null,"Abnahme AKTIVA"]
[]
[null,null,null,"Immaterielle Vermögensgegenstände",null,null,null,null,null,"Roh-, Hilfs- und Betriebsstoffe"]
[null,null,null,"Grundstücke und Bauten",null,null,null,null,null,"Unfertige Erzeugnisse"]
[null,null,null,"Technische Anlagen und Maschinen",null,null,null,null,null,"Fertige Erzeugnisse und Waren"]
[null,null,null,"Betriebs- und Geschäftsausstattung",null,null,null,null,null,"Wertpapiere des Umlaufvermögens"]
[null,null,null,null,null,null,null,null,null,"Aktive Rechnungsabgrenzung"]
[null,null,null,"Beteiligungen"]
[null,null,null,"Wertpapiere des Anlagevermögens",null,null,null,null,null,"Zunahme PASSIVA"]
[]
[null,null,null,"Forderungen aLuL",null,null,null,null,null,"Gewinnrücklagen"]
[null,null,null,"Sonstige Vermögensgegenstände",null,null,null,null,null,"Bilanzgewinn"]
[null,null,null,"Liquide Mittel"]
[null,null,null,null,null,null,null,null,null,"Steuerrückstellungen"]
[null,null,null,"Abnahme PASSIVA",null,null,null,null,null,"Sonstige Rückstellungen"]
[]
[null,null,null,"Rückstellungen für Pensionen"]
[null,null,null,"Verbindlichkeiten gg. Kreditinstituten"]
[null,null,null,"Verbindlichkeiten aLuL"]
[null,null,null,"Sonstige Verbindlichkeiten"]
[null,null,null,"Passive Rechnungsabgrenzung"]

{"sheet":"Bewegungsbilanz_L","index":4,"n_rows":38,"n_cols":11,"rows_kept":38,"cut":false,"hidden":true,"merged":[[10,3,10,10]]}
[]
[]
[null,{"$f":"Bilanz_Daten!B6","v":0},{"$f":"Bilanz_Daten!C3","v":"Lernmodul M 04"}]
[null,null,{"$f":"Bilanz_Daten!C4","v":"Betriebswirtschaftliche Kennzahlen"}]
[]
[null,null,{"$f":"Bilanz_Daten!C6","v":"Thema: Fallbeispiel zur Bilanz- und Erfolgsanalyse"}]
[]
[null,null,"3. Bewegungsbilanz: Musterlösung"]
[]
[]
[null,null,null,{"$f":"CONCATENATE(\"Bewegungsbilanz der MaBau AG  - Geschäftsjahr \" & YEAR(NOW())-1)","v":"Bewegungsbilanz der MaBau AG  - Geschäftsjahr 2021"}]
[]
[null,null,null,"Mittelverwendung"]
[]
[null,null,null,"Zugang AKTIVA",null,null,null,null,null,"Abnahme AKTIVA"]
[]
[null,null,null,"Immaterielle Vermögensgegenstände",null,null,{"$f":"Bilanz_Daten!H23-Bilanz_Daten!I23","v":40},null,null,"Roh-, Hilfs- und Betriebsstoffe",{"$f":"Bilanz_Daten!I30-Bilanz_Daten!H30","v":280}]
[null,null,null,"Grundstücke und Bauten",null,null,{"$f":"Bilanz_Daten!H24-Bilanz_Daten!I24","v":50},null,null,"Unfertige Erzeugnisse",{"$f":"Bilanz_Daten!I31-Bilanz_Daten!H31","v":110}]
[null,null,null,"Technische Anlagen und Maschinen",null,null,{"$f":"Bilanz_Daten!H25-Bilanz_Daten!I25","v":110},null,null,"Fertige Erzeugnisse und Waren",{"$f":"Bilanz_Daten!I32-Bilanz_Daten!H32","v":180}]
[null,null,null,"Betriebs- und Geschäftsausstattung",null,null,{"$f":"Bilanz_Daten!H26-Bilanz_Daten!I26","v":80},null,null,"Wertpapiere des Umlaufvermögens",{"$f":"Bilanz_Daten!I34-Bilanz_Daten!H34","v":60}]
[null,null,null,null,null,null,null,null,null,"Aktive Rechnungsabgrenzung",{"$f":"Bilanz_Daten!I38-Bilanz_Daten!H38","v":25}]
[null,null,null,"Beteiligungen",null,null,{"$f":"Bilanz_Daten!H27-Bilanz_Daten!I27","v":25}]
[null,null,null,"Wertpapiere des Anlagevermögens",null,null,{"$f":"Bilanz_Daten!H28-Bilanz_Daten!I28","v":50},null,null,"Zunahme PASSIVA"]
[]
[null,null,null,"Forderungen aLuL",null,null,{"$f":"Bilanz_Daten!H33-Bilanz_Daten!I33","v":550},null,null,"Gewinnrücklagen",{"$f":"Bilanz_Daten!N25-Bilanz_Daten!O25","v":800}]
[null,null,null,"Sonstige Vermögensgegenstände",null,null,{"$f":"Bilanz_Daten!H35-Bilanz_Daten!I35","v":20},null,null,"Bilanzgewinn",{"$f":"Bilanz_Daten!N26-Bilanz_Daten!O26","v":226}]
[null,null,null,"Liquide Mittel",null,null,{"$f":"Bilanz_Daten!H36-Bilanz_Daten!I36","v":230}]
[null,null,null,null,null,null,null,null,null,"Steuerrückstellungen",{"$f":"Bilanz_Daten!N30-Bilanz_Daten!O30","v":40}]
[null,null,null,"Abnahme PASSIVA",null,null,null,null,null,"Sonstige Rückstellungen",{"$f":"Bilanz_Daten!N31-Bilanz_Daten!O31","v":520}]
[]
[null,null,null,"Rückstellungen für Pensionen",null,null,{"$f":"Bilanz_Daten!O28-Bilanz_Daten!N28","v":230}]
[null,null,null,"Verbindlichkeiten gg. Kreditinstituten",null,null,{"$f":"Bilanz_Daten!O33-Bilanz_Daten!N33","v":330}]
[null,null,null,"Verbindlichkeiten aLuL",null,null,{"$f":"Bilanz_Daten!O34-Bilanz_Daten!N34","v":400}]
[null,null,null,"Sonstige Verbindlichkeiten",null,null,{"$f":"Bilanz_Daten!O35-Bilanz_Daten!N35","v":120}]
[null,null,null,"Passive Rechnungsabgrenzung",null,null,{"$f":"Bilanz_Daten!O38-Bilanz_Daten!N38","v":6}]
[]
[]
[null,null,null,null,null,null,{"$f":"SUM(G17:G35)","v":2241},null,null,null,{"$f":"SUM(K17:K35)","v":2241}]

{"sheet":"GuV_Daten","index":5,"n_rows":37,"n_cols":8,"rows_kept":37,"cut":false,"hidden":false,"merged":[[9,2,10,3],[7,5,7,7]]}
[]
[]
[null,null,{"$f":"Bilanz_Daten!C3","v":"Lernmodul M 04"}]
[null,{"$f":"Bilanz_Daten!B2","v":0},{"$f":"Bilanz_Daten!C4","v":"Betriebswirtschaftliche Kennzahlen"}]
[null,{"$f":"Bilanz_Daten!B6","v":0}]
[null,null,{"$f":"Bilanz_Daten!C6","v":"Thema: Fallbeispiel zur Bilanz- und Erfolgsanalyse"}]
[]
[null,null,"4. Aufbereitete GuV-Daten",null,null,"Angaben in TEUR"]
[]
[null,null," Positionen",null,"Berichtsjahr",null,"Vorjahr"]
[null,null,null,null,{"$f":"YEAR(NOW())-1","v":2021},null,{"$f":"YEAR(NOW())-2","v":2020}]
[null,null,"1.","Umsatzerlöse",null,49560,null,43670]
[null,null,"2.","Bestandserhöhung FE  ",null,1020,null,1090]
[null,null,"3.","anere aktivierte Eigenleistungen",null,50,null,70]
[null,null,"4.","Sonstige betriebliche Erträge",null,180,null,125]
[null,null,"5.","Gesamtleistung (Summe Nr. 1 bis  Nr. 4)",null,{"$f":"SUM(F12:F15)","v":50810},null,{"$f":"SUM(H12:H15)","v":44955}]
[null,null,"6.","Materialaufwand",26560,null,24260]
[null,null,"7.","Personalaufwand",14440,null,11900]
[null,null,"8.","Abschreibungen",{"$f":"2900-180","v":2720},null,2380]
[null,null,"9.","Sonstige betriebliche Aufwendungen",5724,null,5220]
[null,null,"10.","Betrieblicher Aufwand (Nr. 6 bis Nr. 9)",{"$f":"SUM(E17:E20)","v":49444},null,{"$f":"SUM(G17:G20)","v":43760}]
[null,null,"11.","Betriebsergebnis (Nr. 5 ./.  10)",{"$f":"F16-E21","v":1366},null,{"$f":"H16-G21","v":1195}]
[null,null,"12.","Erträge aus Beteiligungen",null,365,null,320]
[null,null,"13.","Erträge aus anderen Wertpapieren",null,40,null,30]
[null,null,"14.","Zinserträge",null,90,null,70]
[null,null,"15.","Zinsaufwendungen",455,null,540]
[null,null,"16.","Finanzergebnis (Nr. 12 + 13 + 14 ./. 15)",{"$f":"SUM(F23:F25)-E26","v":40},null,null,{"$f":"SUM(H23:H25)-G26","v":-120}]
[null,null,"17.","Ergebnis der gewöhnlichen Geschäftstätigkeit (Nr. 11 +  16)",{"$f":"E22+E27","v":1406},null,{"$f":"G22+H27","v":1075}]
[null,null,"18.","außerordentliche Erträge",null,230,null,240]
[null,null,"19.","außerordentliche Aufwendungen",190,null,180]
[null,null,"20.","außerordentliches Ergebnis (Nr. 18 ./. 19)",{"$f":"F29-E30","v":40},null,{"$f":"H29-G30","v":60}]
[null,null,"21.","Ergebnis vor Steuern (Nr. 17 + Nr. 20)",{"$f":"E28+E31","v":1446},null,{"$f":"G28+G31","v":1135}]
[null,null,"22.","Steuern vom Einkommen und Ertrag",180,null,160]
[null,null,"23.","Sonstige Steuern",240,null,230]
[null,null,"24."," Jahresüberschuss (Nr. 21 ./. 22 ./. 23)",{"$f":"E32-E33-E34","v":1026},null,{"$f":"G32-G33-G34","v":745}]
[null,null,"25.","Einstellung in Gewinnrücklagen",800,null,400]
[null,null,"26.","Bilanzgewinn",{"$f":"E35-E36","v":226},null,{"$f":"G35-G36","v":345}]

{"sheet":"Kapitalfluss","index":6,"n_rows":34,"n_cols":7,"rows_kept":34,"cut":false,"hidden":false,"merged":[[8,4,8,6]]}
[]
[]
[null,{"$f":"Bilanz_Daten!B6","v":0},{"$f":"Bilanz_Daten!C3","v":"Lernmodul M 04"}]
[null,null,{"$f":"Bilanz_Daten!C4","v":"Betriebswirtschaftliche Kennzahlen"}]
[]
[null,null,{"$f":"Bilanz_Daten!C6","v":"Thema: Fallbeispiel zur Bilanz- und Erfolgsanalyse"}]
[]
[null,null,"5. Kapitalflussrechnung",null,"Geschäftsjahr:",{"$f":"YEAR(NOW())-1","v":2021}]
[null,null,null,null,"Angaben in TEUR"]
[]
[null,null,"0.","Liquide Mittel zu Beginn des Jahres",null,null,{"$f":"Bilanz_Daten!I36","v":590}]
[]
[null,null,"1.","Jahresüberschuss"]
[null,null,"2.","Abschreibungen"]
[null,null,"3.","Zu-/Abnahme der Vorräte"]
[null,null,"4.","Zu-/Abnahme der Forderungen"]
[null,null,"5.","Zu-/Abnahme der Wertpapiere und sonst. Vermögensgegenst."]
[null,null,"6.","Zu-/Abnahme aktive Rechnungsabgrenzung"]
[null,null,"7.","Zu-/Abnahme der Rückstellungen"]
[null,null,"8.","Zu-/Abnahme der Verbindlichkeiten aLuL"]
[null,null,"9.","Zu-/Abnahme der sonst. Verbindlichkeiten"]
[null,null,"10.","Zu-/Abnahme passive Rechnungsabgrenzung"]
[null,null,"11.","Operativer Cashflow"]
[]
[null,null,"12.","Zu-/Abnahme Anlagevermögen"]
[null,null,"13.","Cashflow aus Investitionen"]
[]
[null,null,"14.","Zu-/Abnahme Verbindlichkeiten gg. Kreditinstituten"]
[null,null,"15.","Cashflow aus Finanzierungstätigkeit"]
[]
[null,null,"16.","Netto-Cashflow"]
[]
[null,null,"17.","Liquide Mittel am Ende des Jahres",null,null,{"$f":"Bilanz_Daten!H36","v":820}]
[null,null,"18.","Kontrolle: Liquide Mittel zu Beginn des Jahres plus Netto-Cashflow"]

{"sheet":"Kapitalfluss_L","index":7,"n_rows":34,"n_cols":7,"rows_kept":34,"cut":false,"hidden":true,"merged":[[8,4,8,6]]}
[]
[]
[null,{"$f":"Bilanz_Daten!B6","v":0},{"$f":"Bilanz_Daten!C3","v":"Lernmodul M 04"}]
[null,null,{"$f":"Bilanz_Daten!C4","v":"Betriebswirtschaftliche Kennzahlen"}]
[]
[null,null,{"$f":"Bilanz_Daten!C6","v":"Thema: Fallbeispiel zur Bilanz- und Erfolgsanalyse"}]
[]
[null,null,"5. Kapitalflussrechnung: Musterlösung",null,"Geschäftsjahr:",{"$f":"YEAR(NOW())-1","v":2021}]
[null,null,null,null,"Angaben in TEUR"]
[]
[null,null,"0.","Liquide Mittel zu Beginn des Jahres",null,null,{"$f":"Bilanz_Daten!I36","v":590}]
[]
[null,null,"1.","Jahresüberschuss",{"$f":"GuV_Daten!E35","v":1026}]
[null,null,"2.","Abschreibungen",{"$f":"GuV_Daten!E19","v":2720}]
[null,null,"3.","Zu-/Abnahme der Vorräte",{"$f":"SUM(Bilanz_Daten!I30:I32)-SUM(Bilanz_Daten!H30:H32)","v":570}]
[null,null,"4.","Zu-/Abnahme der Forderungen",{"$f":"Bilanz_Daten!I33-Bilanz_Daten!H33","v":-550}]
[null,null,"5.","Zu-/Abnahme der Wertpapiere und sonst. Vermögensgegenst.",{"$f":"Bilanz_Daten!I34+Bilanz_Daten!I35-Bilanz_Daten!H34-Bilanz_Daten!H35","v":40}]
[null,null,"6.","Zu-/Abnahme aktive Rechnungsabgrenzung",{"$f":"Bilanz_Daten!I38-Bilanz_Daten!H38","v":25}]
[null,null,"7.","Zu-/Abnahme der Rückstellungen",{"$f":"SUM(Bilanz_Daten!N28:N31)-SUM(Bilanz_Daten!O28:O31)","v":330}]
[null,null,"8.","Zu-/Abnahme der Verbindlichkeiten aLuL",{"$f":"Bilanz_Daten!N34-Bilanz_Daten!O34","v":-400}]
[null,null,"9.","Zu-/Abnahme der sonst. Verbindlichkeiten",{"$f":"Bilanz_Daten!N35-Bilanz_Daten!O35","v":-120}]
[null,null,"10.","Zu-/Abnahme passive Rechnungsabgrenzung",{"$f":"Bilanz_Daten!N38-Bilanz_Daten!O38","v":-6}]
[null,null,"11.","Operativer Cashflow",null,{"$f":"SUM(E13:E22)","v":3635}]
[]
[null,null,"12.","Zu-/Abnahme Anlagevermögen",{"$f":"SUM(Bilanz_Daten!I23:I28)-SUM(Bilanz_Daten!H23:H28)-E14","v":-3075}]
[null,null,"13.","Cashflow aus Investitionen",null,{"$f":"E25","v":-3075}]
[]
[null,null,"14.","Zu-/Abnahme Verbindlichkeiten gg. Kreditinstituten",{"$f":"Bilanz_Daten!N33-Bilanz_Daten!O33","v":-330}]
[null,null,"15.","Cashflow aus Finanzierungstätigkeit",null,{"$f":"SUM(E28:E28)","v":-330}]
[]
[null,null,"16.","Netto-Cashflow",null,{"$f":"SUM(F23:F29)","v":230}]
[]
[null,null,"17.","Liquide Mittel am Ende des Jahres",null,null,{"$f":"Bilanz_Daten!H36","v":820}]
[null,null,"18.","Kontrolle: Liquide Mittel zu Beginn des Jahres plus Netto-Cashflow",null,null,{"$f":"G11+F31","v":820}]

{"sheet":"Kennz1","index":8,"n_rows":50,"n_cols":7,"rows_kept":50,"cut":false,"hidden":false,"merged":[[13,2,13,3],[18,2,18,3],[23,2,23,3]]}
[]
[]
[null,null,{"$f":"Bilanz_Daten!C3","v":"Lernmodul M 04"}]
[null,null,{"$f":"Bilanz_Daten!C4","v":"Betriebswirtschaftliche Kennzahlen"}]
[]
[null,null,{"$f":"Bilanz_Daten!C6","v":"Thema: Fallbeispiel zur Bilanz- und Erfolgsanalyse"}]
[]
[null,null,"6. Teil Bilanzanalyse"]
[null,null,"6.1 Analyse der Vermögensstruktur: Musterlösung"]
[]
[null,null,"Angaben in [1000 EUR]",null,null,"Berichtsjahr","Vorjahr"]
[null,null,null,null,"Anlagevermögen"]
[null,null,null,null,"Umlaufvermögen"]
[null,null,"Konstitution"]
[]
[null,null,"Angaben in [1000 EUR]",null,null,"Berichtsjahr","Vorjahr"]
[null,null,null,null,"Anlagevermögen"]
[null,null,null,null,"Gesamtvermögen"]
[null,null,"Anlagenintensität [%]"]
[]
[null,null,"Angaben in [1000 EUR]",null,null,"Berichtsjahr","Vorjahr"]
[null,null,null,null,"Umlaufvermögen"]
[null,null,null,null,"Gesamtvermögen"]
[null,null,"Umlaufmittelintensität [%]"]
[]
[null,null,"6.2 Analyse der Anlagendeckung: Musterlösung"]
[]
[null,null,"Angaben in [1000 EUR]",null,null,"Berichtsjahr","Vorjahr"]
[null,null,null,null,"Eigenkapital"]
[null,null,null,null,"Anlagevermögen"]
[null,null,"Deckungsgrad 1 [%]"]
[]
[null,null,"Angaben in [1000 EUR]",null,null,"Berichtsjahr","Vorjahr"]
[]
[]
[]
[null,null,"Deckungsgrad 2 [%]"]
[]
[]
[null,null,"Vermögensdeckungsrechnung",null,"Berichtsjahr","Vorjahr","Veränderung"]
[null,null,"   Eigenkapital"]
[null,null,"./. Anlagevermögen"]
[null,null,"= Über- oder Unterdeckung "]
[null,null,"   durch Eigenkapital"]
[null,null,"+ Langfristiges Fremdkapital"]
[null,null,"= langfr. Kapital zur Finanzierung"]
[null,null,"   des Umlaufvermögens"]
[null,null,"./. Umlaufvermögen"]
[null,null,"= notwendiges kurzfrist. Fremdkapital zur"]
[null,null,"   Finanzierung des Umlaufvermögens"]

{"sheet":"Kennz1_L","index":9,"n_rows":50,"n_cols":7,"rows_kept":50,"cut":false,"hidden":true,"merged":[[13,2,13,3],[18,2,18,3],[23,2,23,3]]}
[]
[]
[null,null,{"$f":"Bilanz_Daten!C3","v":"Lernmodul M 04"}]
[null,null,{"$f":"Bilanz_Daten!C4","v":"Betriebswirtschaftliche Kennzahlen"}]
[]
[null,null,{"$f":"Bilanz_Daten!C6","v":"Thema: Fallbeispiel zur Bilanz- und Erfolgsanalyse"}]
[]
[null,null,"6. Teil Bilanzanalyse"]
[null,null,"6.1 Analyse der Vermögensstruktur: Musterlösung"]
[]
[null,null,"Angaben in [1000 EUR]",null,null,"Berichtsjahr","Vorjahr"]
[null,null,null,null,"Anlagevermögen",{"$f":"Strukturbilanz_L!D15","v":6705},{"$f":"Strukturbilanz_L!F15","v":6350}]
[null,null,null,null,"Umlaufvermögen",{"$f":"Strukturbilanz_L!D21","v":5295},{"$f":"Strukturbilanz_L!F21","v":5150}]
[null,null,"Konstitution",null,null,{"$f":"F12/F13","v":1.2662889518413598},{"$f":"G12/G13","v":1.233009708737864}]
[]
[null,null,"Angaben in [1000 EUR]",null,null,"Berichtsjahr","Vorjahr"]
[null,null,null,null,"Anlagevermögen",{"$f":"Strukturbilanz_L!D15","v":6705},{"$f":"Strukturbilanz_L!F15","v":6350}]
[null,null,null,null,"Gesamtvermögen",{"$f":"Strukturbilanz_L!D22","v":12000},{"$f":"Strukturbilanz_L!F22","v":11500}]
[null,null,"Anlagenintensität [%]",null,null,{"$f":"F17*100/F18","v":55.875},{"$f":"G17*100/G18","v":55.217391304347828}]
[]
[null,null,"Angaben in [1000 EUR]",null,null,"Berichtsjahr","Vorjahr"]
[null,null,null,null,"Umlaufvermögen",{"$f":"Strukturbilanz_L!D21","v":5295},{"$f":"Strukturbilanz_L!F21","v":5150}]
[null,null,null,null,"Gesamtvermögen",{"$f":"Strukturbilanz_L!D22","v":12000},{"$f":"Strukturbilanz_L!F22","v":11500}]
[null,null,"Umlaufmittelintensität [%]",null,null,{"$f":"F22*100/F23","v":44.125},{"$f":"G22*100/G23","v":44.782608695652172}]
[]
[null,null,"6.2 Analyse der Anlagendeckung: Musterlösung"]
[]
[null,null,"Angaben in [1000 EUR]",null,null,"Berichtsjahr","Vorjahr"]
[null,null,null,null,"Eigenkapital",{"$f":"Strukturbilanz_L!D29","v":4790},{"$f":"Strukturbilanz_L!F29","v":3990}]
[null,null,null,null,"Anlagevermögen",{"$f":"Strukturbilanz_L!D15","v":6705},{"$f":"Strukturbilanz_L!F15","v":6350}]
[null,null,"Deckungsgrad 1 [%]",null,null,{"$f":"F29*100/F30","v":71.439224459358684},{"$f":"G29*100/G30","v":62.834645669291341}]
[]
[null,null,"Angaben in [1000 EUR]",null,null,"Berichtsjahr","Vorjahr"]
[null,null,null,null,"Eigenkapital",{"$f":"Strukturbilanz_L!D29","v":4790},{"$f":"Strukturbilanz_L!F29","v":3990}]
[null,null,null,null,"Langfr. Fremdkapital",{"$f":"Strukturbilanz_L!D32","v":2630},{"$f":"Strukturbilanz_L!F32","v":3190}]
[null,null,null,null,"Anlagevermögen",{"$f":"Strukturbilanz_L!D15","v":6705},{"$f":"Strukturbilanz_L!F15","v":6350}]
[null,null,"Deckungsgrad 2 [%]",null,null,{"$f":"(F34+F35)*100/F36","v":110.66368381804624},{"$f":"(G34+G35)*100/G36","v":113.07086614173228}]
[]
[]
[null,null,"Vermögensdeckungsrechnung",null,"Berichtsjahr","Vorjahr","Veränderung"]
[null,null,"   Eigenkapital",null,{"$f":"Strukturbilanz_L!D29","v":4790},{"$f":"Strukturbilanz_L!F29","v":3990},{"$f":"E41-F41","v":800}]
[null,null,"./. Anlagevermögen",null,{"$f":"Strukturbilanz_L!D15","v":6705},{"$f":"Strukturbilanz_L!F15","v":6350},{"$f":"E42-F42","v":355}]
[null,null,"= Über- oder Unterdeckung "]
[null,null,"   durch Eigenkapital",null,{"$f":"E41-E42","v":-1915},{"$f":"F41-F42","v":-2360}]
[null,null,"+ Langfristiges Fremdkapital",null,{"$f":"Strukturbilanz_L!D32","v":2630},{"$f":"Strukturbilanz_L!F32","v":3190},{"$f":"E45-F45","v":-560}]
[null,null,"= langfr. Kapital zur Finanzierung"]
[null,null,"   des Umlaufvermögens",null,{"$f":"E44+E45","v":715},{"$f":"F44+F45","v":830},{"$f":"E47-F47","v":-115}]
[null,null,"./. Umlaufvermögen",null,{"$f":"Strukturbilanz_L!D21","v":5295},{"$f":"Strukturbilanz_L!F21","v":5150},{"$f":"E48-F48","v":145}]
[null,null,"= notwendiges kurzfrist. Fremdkapital zur"]
[null,null,"   Finanzierung des Umlaufvermögens",null,{"$f":"E47-E48","v":-4580},{"$f":"F47-F48","v":-4320}]

{"sheet":"Kennz2","index":10,"n_rows":34,"n_cols":7,"rows_kept":34,"cut":false,"hidden":false,"merged":[]}
[]
[]
[null,null,{"$f":"Bilanz_Daten!C3","v":"Lernmodul M 04"}]
[null,null,{"$f":"Bilanz_Daten!C4","v":"Betriebswirtschaftliche Kennzahlen"}]
[]
[null,null,{"$f":"Bilanz_Daten!C6","v":"Thema: Fallbeispiel zur Bilanz- und Erfolgsanalyse"}]
[]
[null,null,{"$f":"Kennz1!C8","v":"6. Teil Bilanzanalyse"}]
[null,null,"6.3 Analyse der Kapitalausstattung "]
[]
[null,null,null,null,null,"Berichtsjahr","Vorjahr"]
[]
[]
[null,null,"  Eigenkapitalquote [%]"]
[]
[null,null,null,null,null,"Berichtsjahr","Vorjahr"]
[]
[]
[null,null,"  Grad der Verschuldung [%]"]
[]
[null,null,null,null,null,"Berichtsjahr","Vorjahr"]
[null,null,null,null,"Langfr. Fremdkapital"]
[null,null,null,null,"Gesamtkapital"]
[null,null," Anteil des langfr. Fremdkapitals [%]"]
[]
[null,null,null,null,null,"Berichtsjahr","Vorjahr"]
[null,null,null,null,"Kurzfr. Fremdkapital"]
[null,null,null,null,"Gesamtkapital"]
[null,null,"  Anteil des kurzfr. Fremdkapitals [%]"]
[]
[null,null,null,null,null,"Berichtsjahr","Vorjahr"]
[]
[]
[null,null," Grad der Selbstfinanzierung [%]"]

{"sheet":"Kennz2_L","index":11,"n_rows":34,"n_cols":7,"rows_kept":34,"cut":false,"hidden":true,"merged":[]}
[]
[]
[null,null,{"$f":"Bilanz_Daten!C3","v":"Lernmodul M 04"}]
[null,null,{"$f":"Bilanz_Daten!C4","v":"Betriebswirtschaftliche Kennzahlen"}]
[]
[null,null,{"$f":"Bilanz_Daten!C6","v":"Thema: Fallbeispiel zur Bilanz- und Erfolgsanalyse"}]
[]
[null,null,{"$f":"Kennz1!C8","v":"6. Teil Bilanzanalyse"}]
[null,null,"6.3 Analyse der Kapitalausstattung "]
[]
[null,null,null,null,null,"Berichtsjahr","Vorjahr"]
[null,null,null,null,"Eigenkapital",{"$f":"Strukturbilanz_L!D29","v":4790},{"$f":"Strukturbilanz_L!F29","v":3990}]
[null,null,null,null,"Gesamtkapital",{"$f":"Strukturbilanz_L!D38","v":12000},{"$f":"Strukturbilanz_L!F38","v":11500}]
[null,null,"  Eigenkapitalquote [%]",null,null,{"$f":"F12*100/F13","v":39.916666666666664},{"$f":"G12*100/G13","v":34.695652173913047}]
[]
[null,null,null,null,null,"Berichtsjahr","Vorjahr"]
[null,null,null,null,"Fremdkapital",{"$f":"Strukturbilanz_L!D32+Strukturbilanz_L!D37","v":7210},{"$f":"Strukturbilanz_L!F32+Strukturbilanz_L!F37","v":7510}]
[null,null,null,null,"Eigenkapital",{"$f":"Strukturbilanz_L!D29","v":4790},{"$f":"Strukturbilanz_L!F29","v":3990}]
[null,null,"  Grad der Verschuldung [%]",null,null,{"$f":"F17*100/F18","v":150.52192066805844},{"$f":"G17*100/G18","v":188.22055137844612}]
[]
[null,null,null,null,null,"Berichtsjahr","Vorjahr"]
[null,null,null,null,"Langfr. Fremdkapital",{"$f":"Strukturbilanz_L!D32","v":2630},{"$f":"Strukturbilanz_L!F32","v":3190}]
[null,null,null,null,"Gesamtkapital",{"$f":"Strukturbilanz_L!D38","v":12000},{"$f":"Strukturbilanz_L!F38","v":11500}]
[null,null," Anteil des langfr. Fremdkapitals [%]",null,null,{"$f":"F22*100/F23","v":21.916666666666668},{"$f":"G22*100/G23","v":27.739130434782609}]
[]
[null,null,null,null,null,"Berichtsjahr","Vorjahr"]
[null,null,null,null,"Kurzfr. Fremdkapital",{"$f":"Strukturbilanz_L!D37","v":4580},{"$f":"Strukturbilanz_L!F37","v":4320}]
[null,null,null,null,"Gesamtkapital",{"$f":"Strukturbilanz_L!D38","v":12000},{"$f":"Strukturbilanz_L!F38","v":11500}]
[null,null,"  Anteil des kurzfr. Fremdkapitals [%]",null,null,{"$f":"F27*100/F28","v":38.166666666666664},{"$f":"G27*100/G28","v":37.565217391304351}]
[]
[null,null,null,null,null,"Berichtsjahr","Vorjahr"]
[null,null,null,null,"Gewinnrücklagen",{"$f":"Strukturbilanz_L!D28","v":1410},{"$f":"Strukturbilanz_L!F28","v":610}]
[null,null,null,null,"Gesamtkapital",{"$f":"Strukturbilanz_L!D38","v":12000},{"$f":"Strukturbilanz_L!F38","v":11500}]
[null,null," Grad der Selbstfinanzierung [%]",null,null,{"$f":"F32*100/F33","v":11.75},{"$f":"G32*100/G33","v":5.3043478260869561}]

{"sheet":"Kennz3","index":12,"n_rows":35,"n_cols":7,"rows_kept":35,"cut":false,"hidden":false,"merged":[]}
[]
[]
[null,null,{"$f":"Bilanz_Daten!C3","v":"Lernmodul M 04"}]
[null,null,{"$f":"Bilanz_Daten!C4","v":"Betriebswirtschaftliche Kennzahlen"}]
[]
[null,null,{"$f":"Bilanz_Daten!C6","v":"Thema: Fallbeispiel zur Bilanz- und Erfolgsanalyse"}]
[]
[null,null,"6. Bilanzanalyse"]
[null,null,"6.4 Analyse der Zahlungsbereitschaft (Liquidität)"]
[]
[null,null,null,null,null,"Berichtsjahr","Vorjahr"]
[]
[]
[null,null,"Liquiditätsgrad  I (Barliquidität) [%]"]
[]
[null,null,null,null,null,"Berichtsjahr","Vorjahr"]
[null,null,null,null,"Flüssige Mittel "]
[null,null,null,null,"Forderungen, Wertpapiere, ARA"]
[null,null,null,null,"Kurzfr. Fremdkapital"]
[null,null,"Liquiditätsgrad II (einzugsbedingte Liquidität) [%]"]
[]
[null,null,null,null,null,"Berichtsjahr","Vorjahr"]
[]
[]
[null,null,"Liquiditätsgrad  III (umsatzbedingte Liquidität) [%]"]
[]
[]
[null,null,"Liquiditäts-Staffelrechnung",null,"Berichtsjahr","Vorjahr"]
[null,null,"   Flüssige Mittel"]
[null,null,"./.kurzfristiges Fremdkapital"]
[null,null,"= Unterdeckung (1. Stufe)"]
[null,null,"+ Forderungen, Wertpapiere, ARA"]
[null,null,"= Über- bzw. Unterdeckung  (2. Stufe)"]
[null,null,"+ Vorräte"]
[null,null,"= Überdeckung (3.Stufe)"]

{"sheet":"Kennz3_L","index":13,"n_rows":35,"n_cols":7,"rows_kept":35,"cut":false,"hidden":true,"merged":[]}
[]
[]
[null,null,{"$f":"Bilanz_Daten!C3","v":"Lernmodul M 04"}]
[null,null,{"$f":"Bilanz_Daten!C4","v":"Betriebswirtschaftliche Kennzahlen"}]
[]
[null,null,{"$f":"Bilanz_Daten!C6","v":"Thema: Fallbeispiel zur Bilanz- und Erfolgsanalyse"}]
[]
[null,null,"6. Bilanzanalyse"]
[null,null,"6.4 Analyse der Zahlungsbereitschaft (Liquidität)"]
[]
[null,null,null,null,null,"Berichtsjahr","Vorjahr"]
[null,null,null,null,"Flüssige Mittel",{"$f":"Strukturbilanz_L!D19","v":820},{"$f":"Strukturbilanz_L!F19","v":590}]
[null,null,null,null,"Kurzfr. Fremdkapital",{"$f":"Strukturbilanz_L!D37","v":4580},{"$f":"Strukturbilanz_L!F37","v":4320}]
[null,null,"Liquiditätsgrad  I (Barliquidität) [%]",null,null,{"$f":"F12*100/F13","v":17.903930131004365},{"$f":"G12*100/G13","v":13.657407407407407}]
[]
[null,null,null,null,null,"Berichtsjahr","Vorjahr"]
[null,null,null,null,"Flüssige Mittel ",{"$f":"Strukturbilanz_L!D19","v":820},{"$f":"Strukturbilanz_L!F19","v":590}]
[null,null,null,null,"Forderungen, Wertpapiere, ARA",{"$f":"Strukturbilanz_L!D17+Strukturbilanz_L!D18+Strukturbilanz_L!D20","v":2245},{"$f":"Strukturbilanz_L!F17+Strukturbilanz_L!F18+Strukturbilanz_L!F20","v":1760}]
[null,null,null,null,"Kurzfr. Fremdkapital",{"$f":"Strukturbilanz_L!D37","v":4580},{"$f":"Strukturbilanz_L!F37","v":4320}]
[null,null,"Liquiditätsgrad II (einzugsbedingte Liquidität) [%]",null,null,{"$f":"(F17+F18)*100/F19","v":66.921397379912662},{"$f":"(G17+G18)*100/G19","v":54.398148148148145}]
[]
[null,null,null,null,null,"Berichtsjahr","Vorjahr"]
[null,null,null,null,"Umlaufvermögen",{"$f":"Strukturbilanz_L!D21","v":5295},{"$f":"Strukturbilanz_L!F21","v":5150}]
[null,null,null,null,"Kurzfr. Fremdkapital",{"$f":"Strukturbilanz_L!D37","v":4580},{"$f":"Strukturbilanz_L!F37","v":4320}]
[null,null,"Liquiditätsgrad  III (umsatzbedingte Liquidität) [%]",null,null,{"$f":"F23*100/F24","v":115.61135371179039},{"$f":"G23*100/G24","v":119.21296296296296}]
[]
[]
[null,null,"Liquiditäts-Staffelrechnung",null,"Berichtsjahr","Vorjahr"]
[null,null,"   Flüssige Mittel",null,{"$f":"Strukturbilanz_L!D19","v":820},{"$f":"Strukturbilanz_L!F19","v":590}]
[null,null,"./.kurzfristiges Fremdkapital",null,{"$f":"Strukturbilanz_L!D37","v":4580},{"$f":"Strukturbilanz_L!F37","v":4320}]
[null,null,"= Unterdeckung (1. Stufe)",null,{"$f":"E29-E30","v":-3760},{"$f":"F29-F30","v":-3730}]
[null,null,"+ Forderungen, Wertpapiere, ARA",null,{"$f":"Strukturbilanz_L!D17+Strukturbilanz_L!D18+Strukturbilanz_L!D20","v":2245},{"$f":"Strukturbilanz_L!F17+Strukturbilanz_L!F18+Strukturbilanz_L!F20","v":1760}]
[null,null,"= Über- bzw. Unterdeckung  (2. Stufe)",null,{"$f":"E31+E32","v":-1515},{"$f":"F31+F32","v":-1970}]
[null,null,"+ Vorräte",null,{"$f":"Strukturbilanz_L!D16","v":2230},{"$f":"Strukturbilanz_L!F16","v":2800}]
[null,null,"= Überdeckung (3.Stufe)",null,{"$f":"E33+E34","v":715},{"$f":"F33+F34","v":830}]

{"sheet":"Kennz4","index":14,"n_rows":57,"n_cols":7,"rows_kept":57,"cut":false,"hidden":false,"merged":[]}
[]
[]
[null,null,{"$f":"Bilanz_Daten!C3","v":"Lernmodul M 04"}]
[null,{"$f":"Bilanz_Daten!B2","v":0},{"$f":"Bilanz_Daten!C4","v":"Betriebswirtschaftliche Kennzahlen"}]
[]
[null,null,"7. Teil Erfolgsanalyse"]
[]
[null,null,"7.1 Rentabilitätsanalyse"]
[]
[null,null,null,null,null,"Berichtsjahr","Vorjahr"]
[]
[]
[null,null,"Umsatzrentabilität [%]"]
[]
[null,null,null,null,null,"Berichtsjahr","Vorjahr"]
[null,null,null,null,"Jahresüberschuss"]
[null,null,null,null,"+ Steueraufwand"]
[null,null,null,null,"- (+ - ) ao Ergebnis"]
[null,null,null,null,"- (+ - ) Finanzergebnis"]
[null,null,"EBIT [TEUR]"]
[]
[null,null,null,null,null,"Berichtsjahr","Vorjahr"]
[]
[]
[null,null,"EBIT-Marge [%]"]
[]
[null,null,null,null,null,"Berichtsjahr","Vorjahr"]
[null,null,null,null,"EBIT"]
[]
[null,null,"EBITDA [TEUR]"]
[]
[null,null,null,null,null,"Berichtsjahr","Vorjahr"]
[]
[]
[null,null,"EBITDA-Marge [%]"]
[]
[null,null,null,null,null,"Berichtsjahr","Vorjahr"]
[null,null,null,null,"Jahresüberschuss"]
[null,null,null,null,"durchschn. Eigenkapital"]
[null,null,"Eigenkapitalrentabilität [% p. a.]"]
[]
[null,null,null,null,null,"Berichtsjahr","Vorjahr"]
[]
[]
[null,null,"Eigenkapitalrentabilität [% p. a.]"]
[]
[null,null,null,null,null,"Berichtsjahr","Vorjahr"]
[null,null,null,null,"Jahresüberschuss"]
[null,null,null,null,"Fremdkapitalzinsen"]
[null,null,null,null,"durchschn. Gesamtkapital"]
[null,null,"Gesamtkapitalrentabilität [% p. a.]"]
[]
[null,null,null,null,null,"Berichtsjahr","Vorjahr"]
[null,null,null,null,"EBIT"]
[null,null,null,null,"Fremdkapitalzinsen"]
[null,null,null,null,"durchschn. Gesamtkapital"]
[null,null,"Gesamtkapitalrentabilität [% p. a.]"]

{"sheet":"Kennz4_L","index":15,"n_rows":57,"n_cols":7,"rows_kept":57,"cut":false,"hidden":true,"merged":[]}
[]
[]
[null,null,{"$f":"Bilanz_Daten!C3","v":"Lernmodul M 04"}]
[null,{"$f":"Bilanz_Daten!B2","v":0},{"$f":"Bilanz_Daten!C4","v":"Betriebswirtschaftliche Kennzahlen"}]
[]
[null,null,"7. Teil Erfolgsanalyse"]
[]
[null,null,"7.1 Rentabilitätsanalyse"]
[]
[null,null,null,null,null,"Berichtsjahr","Vorjahr"]
[null,null,null,null,"Betriebsergebnis",{"$f":"GuV_Daten!E22","v":1366},{"$f":"GuV_Daten!G22","v":1195}]
[null,null,null,null,"Umsatzerlöse",{"$f":"GuV_Daten!F12","v":49560},{"$f":"GuV_Daten!H12","v":43670}]
[null,null,"Umsatzrentabilität [%]",null,null,{"$f":"F11*100/F12","v":2.7562550443906377},{"$f":"G11*100/G12","v":2.7364323334096632}]
[]
[null,null,null,null,null,"Berichtsjahr","Vorjahr"]
[null,null,null,null,"Jahresüberschuss",{"$f":"GuV_Daten!E35","v":1026},{"$f":"GuV_Daten!G35","v":745}]
[null,null,null,null,"+ Steueraufwand",{"$f":"GuV_Daten!E33+GuV_Daten!E34","v":420},{"$f":"GuV_Daten!G33+GuV_Daten!G34","v":390}]
[null,null,null,null,"- (+ - ) ao Ergebnis",{"$f":"GuV_Daten!E31","v":40},{"$f":"GuV_Daten!G31","v":60}]
[null,null,null,null,"- (+ - ) Finanzergebnis",{"$f":"GuV_Daten!E27","v":40},{"$f":"GuV_Daten!H27","v":-120}]
[null,null,"EBIT [TEUR]",null,null,{"$f":"F16+F17-F18-F19","v":1366},{"$f":"G16+G17-G18-G19","v":1195}]
[]
[null,null,null,null,null,"Berichtsjahr","Vorjahr"]
[null,null,null,null,"EBIT",{"$f":"F20","v":1366},{"$f":"G20","v":1195}]
[null,null,null,null,"Umsatzerlöse",{"$f":"GuV_Daten!F12","v":49560},{"$f":"GuV_Daten!H12","v":43670}]
[null,null,"EBIT-Marge [%]",null,null,{"$f":"F23*100/F24","v":2.7562550443906377},{"$f":"G23*100/G24","v":2.7364323334096632}]
[]
[null,null,null,null,null,"Berichtsjahr","Vorjahr"]
[null,null,null,null,"EBIT",{"$f":"F20","v":1366},{"$f":"G20","v":1195}]
[null,null,null,null,"+ Abschreibungen",{"$f":"GuV_Daten!E19","v":2720},{"$f":"GuV_Daten!G19","v":2380}]
[null,null,"EBITDA [TEUR]",null,null,{"$f":"F28+F29","v":4086},{"$f":"G28+G29","v":3575}]
[]
[null,null,null,null,null,"Berichtsjahr","Vorjahr"]
[null,null,null,null,"EBITDA",{"$f":"F30","v":4086},{"$f":"G30","v":3575}]
[null,null,null,null,"Umsatzerlöse",{"$f":"GuV_Daten!F12","v":49560},{"$f":"GuV_Daten!H12","v":43670}]
[null,null,"EBITDA-Marge [%]",null,null,{"$f":"F33*100/F34","v":8.2445520581113794},{"$f":"G33*100/G34","v":8.1863979848866499}]
[]
[null,null,null,null,null,"Berichtsjahr","Vorjahr"]
[null,null,null,null,"Jahresüberschuss",{"$f":"GuV_Daten!E35","v":1026},{"$f":"GuV_Daten!G35","v":745}]
[null,null,null,null,"durchschn. Eigenkapital",{"$f":"(Strukturbilanz_L!D29+Strukturbilanz_L!F29)/2","v":4390},{"$f":"Strukturbilanz_L!F29","v":3990}]
[null,null,"Eigenkapitalrentabilität [% p. a.]",null,null,{"$f":"F38*100/F39","v":23.37129840546697},{"$f":"G38*100/G39","v":18.671679197994987}]
[]
[null,null,null,null,null,"Berichtsjahr","Vorjahr"]
[null,null,null,null,"EBIT",{"$f":"F20","v":1366},{"$f":"G20","v":1195}]
[null,null,null,null,"durchschn. Eigenkapital",{"$f":"F39","v":4390},{"$f":"G39","v":3990}]
[null,null,"Eigenkapitalrentabilität [% p. a.]",null,null,{"$f":"F43*100/F44","v":31.116173120728931},{"$f":"G43*100/G44","v":29.949874686716793}]
[]
[null,null,null,null,null,"Berichtsjahr","Vorjahr"]
[null,null,null,null,"Jahresüberschuss",{"$f":"GuV_Daten!E35","v":1026},{"$f":"GuV_Daten!G35","v":745}]
[null,null,null,null,"Fremdkapitalzinsen",{"$f":"GuV_Daten!E26","v":455},{"$f":"GuV_Daten!G26","v":540}]
[null,null,null,null,"durchschn. Gesamtkapital",{"$f":"(Strukturbilanz_L!D38+Strukturbilanz_L!F38)/2","v":11750},{"$f":"Strukturbilanz_L!F38","v":11500}]
[null,null,"Gesamtkapitalrentabilität [% p. a.]",null,null,{"$f":"(F48+F49)*100/F50","v":12.604255319148937},{"$f":"(G48+G49)*100/G50","v":11.173913043478262}]
[]
[null,null,null,null,null,"Berichtsjahr","Vorjahr"]
[null,null,null,null,"EBIT",{"$f":"F20","v":1366},{"$f":"G20","v":1195}]
[null,null,null,null,"Fremdkapitalzinsen",{"$f":"GuV_Daten!E26","v":455},{"$f":"GuV_Daten!G26","v":540}]
[null,null,null,null,"durchschn. Gesamtkapital",{"$f":"F50","v":11750},{"$f":"G50","v":11500}]
[null,null,"Gesamtkapitalrentabilität [% p. a.]",null,null,{"$f":"(F54+F55)*100/F56","v":15.497872340425532},{"$f":"(G54+G55)*100/G56","v":15.086956521739131}]

{"sheet":"Kennz5","index":16,"n_rows":41,"n_cols":7,"rows_kept":41,"cut":false,"hidden":false,"merged":[]}
[]
[]
[null,null,{"$f":"Bilanz_Daten!C3","v":"Lernmodul M 04"}]
[null,null,{"$f":"Bilanz_Daten!C4","v":"Betriebswirtschaftliche Kennzahlen"}]
[]
[null,null,{"$f":"Bilanz_Daten!C6","v":"Thema: Fallbeispiel zur Bilanz- und Erfolgsanalyse"}]
[]
[null,null,"7.2 Umschlagskennzahlen"]
[]
[null,null,null,null,null,"Berichtsjahr","Vorjahr"]
[null,null,null,null,"Materialaufwand"]
[null,null,null,null,"durchschn. Materialbestand"]
[null,null,"Lagerumschlagshäufigkeit [-/a]"]
[null,null,"durchschn. Lagerdauer [d]"]
[]
[null,null,null,null,null,"Berichtsjahr","Vorjahr"]
[null,null,null,null,"Umsatzerlöse"]
[null,null,null,null,"durchschn. Forderungsbestand"]
[null,null,"Umschlagshäufigkeit der Forderungen [-/a]"]
[null,null,"durchschn.  Kreditdauer (Zahlungsziel) [d]"]
[]
[null,null,null,null,null,"Berichtsjahr","Vorjahr"]
[null,null,null,null,"Abschreibungen"]
[null,null,null,null,"Abgänge vom Anlagevermögen"]
[null,null,null,null,"durchschn. Anlagevermögen"]
[null,null,"Umschlagshäufigkeit des Anlagevermögens [-/a]"]
[null,null,null,null,null,"Berichtsjahr","Vorjahr"]
[null,null,null,null,"Umsatzerlöse"]
[null,null,null,null,"durchschn. UV-Bestand"]
[null,null,"Umschlagshäufigkeit des Umlaufvermögens [-/a]"]
[]
[null,null,null,null,null,"Berichtsjahr","Vorjahr"]
[]
[]
[null,null,"Umschlagszahl des Kapitals [-/a]"]
[]
[null,null,null,null,null,"Berichtsjahr","Vorjahr"]
[]
[]
[null,null,"Return on Investment [% p. a.]"]
[null,null,"Rückflussdauer des Kapitals über das Betriebsergebnis [a]"]

{"sheet":"Kennz5_L","index":17,"n_rows":41,"n_cols":7,"rows_kept":41,"cut":false,"hidden":true,"merged":[]}
[]
[]
[null,null,{"$f":"Bilanz_Daten!C3","v":"Lernmodul M 04"}]
[null,null,{"$f":"Bilanz_Daten!C4","v":"Betriebswirtschaftliche Kennzahlen"}]
[]
[null,null,{"$f":"Bilanz_Daten!C6","v":"Thema: Fallbeispiel zur Bilanz- und Erfolgsanalyse"}]
[]
[null,null,"7.2 Umschlagskennzahlen"]
[]
[null,null,null,null,null,"Berichtsjahr","Vorjahr"]
[null,null,null,null,"Materialaufwand",{"$f":"GuV_Daten!E17","v":26560},{"$f":"GuV_Daten!G17","v":24260}]
[null,null,null,null,"durchschn. Materialbestand",{"$f":"(Bilanz_Daten!H30 +Bilanz_Daten!I30)/2","v":1150},{"$f":"Bilanz_Daten!I30","v":1290}]
[null,null,"Lagerumschlagshäufigkeit [-/a]",null,null,{"$f":"F11/F12","v":23.095652173913045},{"$f":"G11/G12","v":18.806201550387598}]
[null,null,"durchschn. Lagerdauer [d]",null,null,{"$f":"360/F13","v":15.58734939759036},{"$f":"360/G13","v":19.142621599340476}]
[]
[null,null,null,null,null,"Berichtsjahr","Vorjahr"]
[null,null,null,null,"Umsatzerlöse",{"$f":"GuV_Daten!F12","v":49560},{"$f":"GuV_Daten!H12","v":43670}]
[null,null,null,null,"durchschn. Forderungsbestand",{"$f":"(Bilanz_Daten!H33+Bilanz_Daten!I33)/2","v":855},{"$f":"Bilanz_Daten!I33","v":580}]
[null,null,"Umschlagshäufigkeit der Forderungen [-/a]",null,null,{"$f":"F17/F18","v":57.964912280701753},{"$f":"G17/G18","v":75.293103448275858}]
[null,null,"durchschn.  Kreditdauer (Zahlungsziel) [d]",null,null,{"$f":"360/F19","v":6.2106537530266346},{"$f":"360/G19","v":4.7813144034806507}]
[]
[null,null,null,null,null,"Berichtsjahr","Vorjahr"]
[null,null,null,null,"Abschreibungen",{"$f":"GuV_Daten!E19","v":2720},{"$f":"GuV_Daten!G19","v":2380}]
[null,null,null,null,"Abgänge vom Anlagevermögen",0,0]
[null,null,null,null,"durchschn. Anlagevermögen",{"$f":"(Strukturbilanz_L!D15+Strukturbilanz_L!F15)/2","v":6527.5},{"$f":"Strukturbilanz_L!F15","v":6350}]
[null,null,"Umschlagshäufigkeit des Anlagevermögens [-/a]",null,null,{"$f":"(F23+F24)/F25","v":0.41669858291842204},{"$f":"(G23+G24)/G25","v":0.37480314960629924}]
[null,null,null,null,null,"Berichtsjahr","Vorjahr"]
[null,null,null,null,"Umsatzerlöse",{"$f":"GuV_Daten!F12","v":49560},{"$f":"GuV_Daten!H12","v":43670}]
[null,null,null,null,"durchschn. UV-Bestand",{"$f":"(Strukturbilanz_L!D21+Strukturbilanz_L!F21)/2","v":5222.5},{"$f":"Strukturbilanz_L!F21","v":5150}]
[null,null,"Umschlagshäufigkeit des Umlaufvermögens [-/a]",null,null,{"$f":"F28/F29","v":9.4897079942556246},{"$f":"G28/G29","v":8.4796116504854364}]
[]
[null,null,null,null,null,"Berichtsjahr","Vorjahr"]
[null,null,null,null,"Umsatzerlöse",{"$f":"GuV_Daten!F12","v":49560},{"$f":"GuV_Daten!H12","v":43670}]
[null,null,null,null,"durchschn. Gesamtkapital",{"$f":"(Strukturbilanz_L!D38+Strukturbilanz_L!F38)/2","v":11750},{"$f":"Strukturbilanz_L!F38","v":11500}]
[null,null,"Umschlagszahl des Kapitals [-/a]",null,null,{"$f":"F33/F34","v":4.2178723404255321},{"$f":"G33/G34","v":3.7973913043478262}]
[]
[null,null,null,null,null,"Berichtsjahr","Vorjahr"]
[null,null,null,null,"Umsatzrentabilität [%]",{"$f":"Kennz4_L!F13","v":2.7562550443906377},{"$f":"Kennz4_L!G13","v":2.7364323334096632}]
[null,null,null,null,"Umschlagszahl d. Kapitals ]-/a]",{"$f":"F35","v":4.2178723404255321},{"$f":"G35","v":3.7973913043478262}]
[null,null,"Return on Investment [% p. a.]",null,null,{"$f":"F38*F39","v":11.625531914893617},{"$f":"G38*G39","v":10.391304347826086}]
[null,null,"Rückflussdauer des Kapitals über das Betriebsergebnis [a]",null,null,{"$f":"100/F40","v":8.6017569546120054},{"$f":"100/G40","v":9.6234309623430967}]

{"sheet":"Kennz6","index":18,"n_rows":28,"n_cols":7,"rows_kept":28,"cut":false,"hidden":false,"merged":[]}
[]
[]
[null,null,{"$f":"Bilanz_Daten!C3","v":"Lernmodul M 04"}]
[null,null,{"$f":"Bilanz_Daten!C4","v":"Betriebswirtschaftliche Kennzahlen"}]
[]
[null,null,{"$f":"Bilanz_Daten!C6","v":"Thema: Fallbeispiel zur Bilanz- und Erfolgsanalyse"}]
[]
[null,null,"7.3 Cashflow-Kennzahlen"]
[]
[null,null,null,null,null,"Berichtsjahr","Vorjahr"]
[null,null,null,null,"Operativer Cashflow"]
[null,null,null,null,"Umsatzerlöse"]
[null,null,"CF-Rate des Umsatzes [%]"]
[]
[null,null,null,null,null,"Berichtsjahr","Vorjahr"]
[null,null,null,null,"Verbindlichkeiten gesamt"]
[null,null,null,null,"monetäres Umlaufervmögen"]
[null,null,"Effektiv-Verschuldung"]
[]
[null,null,null,null,null,"Berichtsjahr","Vorjahr"]
[null,null,null,null,"Effektiv-Verschuldung"]
[null,null,null,null,"Operativer Cashflow"]
[null,null,"Dynamischer Verschuldungsgrad"]
[]
[null,null,null,null,null,"Berichtsjahr","Vorjahr"]
[null,null,null,null,"Operativer Cashflow"]
[null,null,null,null,"Investitionen"]
[null,null,"Investitionsdeckungsgrad aus Cashflow [%]"]

{"sheet":"Kennz6_L","index":19,"n_rows":28,"n_cols":7,"rows_kept":28,"cut":false,"hidden":true,"merged":[]}
[]
[]
[null,null,{"$f":"Bilanz_Daten!C3","v":"Lernmodul M 04"}]
[null,null,{"$f":"Bilanz_Daten!C4","v":"Betriebswirtschaftliche Kennzahlen"}]
[]
[null,null,{"$f":"Bilanz_Daten!C6","v":"Thema: Fallbeispiel zur Bilanz- und Erfolgsanalyse"}]
[]
[null,null,"7.3 Cashflow-Kennzahlen"]
[]
[null,null,null,null,null,"Berichtsjahr","Vorjahr"]
[null,null,null,null,"Operativer Cashflow",{"$f":"Kapitalfluss_L!F23","v":3635}]
[null,null,null,null,"Umsatzerlöse",{"$f":"GuV_Daten!F12","v":49560}]
[null,null,"CF-Rate des Umsatzes [%]",null,null,{"$f":"F11*100/F12","v":7.3345439870863602}]
[]
[null,null,null,null,null,"Berichtsjahr","Vorjahr"]
[null,null,null,null,"Verbindlichkeiten gesamt",{"$f":"Strukturbilanz_L!D32+Strukturbilanz_L!D37","v":7210}]
[null,null,null,null,"monetäres Umlaufervmögen",{"$f":"SUM(Strukturbilanz_L!D17:D20)","v":3065}]
[null,null,"Effektiv-Verschuldung",null,null,{"$f":"F16-F17","v":4145}]
[]
[null,null,null,null,null,"Berichtsjahr","Vorjahr"]
[null,null,null,null,"Effektiv-Verschuldung",{"$f":"F18","v":4145}]
[null,null,null,null,"Operativer Cashflow",{"$f":"Kapitalfluss_L!F23","v":3635}]
[null,null,"Dynamischer Verschuldungsgrad",null,null,{"$f":"F21/F22","v":1.1403026134800551}]
[]
[null,null,null,null,null,"Berichtsjahr","Vorjahr"]
[null,null,null,null,"Operativer Cashflow",{"$f":"Kapitalfluss_L!F23","v":3635}]
[null,null,null,null,"Investitionen",{"$f":"Bilanz_Daten!I14","v":3075}]
[null,null,"Investitionsdeckungsgrad aus Cashflow [%]",null,null,{"$f":"F26*100/F27","v":118.21138211382114}]